bitfinex-derivatives/quotes_SOLF0:USTF0_20250821
["timestamp","ask_amount","ask_price","bid_price","bid_amount"]
[1755742694512,2.77,186.55,186.45,3.05]
[1755742695020,5.3607,186.52,186.45,3.05]
[1755742695219,2.77,186.55,186.45,3.05]
[1755742695919,2.77,186.55,186.42,7.12]
[1755742696316,5.3613,186.5,186.42,12.4833]
[1755742696519,5.3613,186.5,186.43,3.05]
[1755742697618,2.77,186.55,186.44,3.05]
[1755742698123,5.3609,186.52,186.44,8.413]
[1755742698523,5.361,186.51,186.44,3.05]
[1755742699021,5.3607,186.52,186.44,3.05]
[1755742699428,2.77,186.55,186.44,8.4129]
[1755742699723,2.77,186.55,186.44,3.05]
[1755742699919,2.77,186.53,186.41,4.4867143]
[1755742700122,2.77,186.49,186.4,3.05]
[1755742701622,5.3626,186.46,186.4,3.05]
[1755742701826,5.3626,186.46,186.37,14.7467143]
[1755742701827,2.77,186.46,186.37,14.7467143]
[1755742702119,2.77,186.46,186.37,10.26]
[1755742702329,2.77,186.46,186.37,7.21]
[1755742702521,6.52987021,186.46,186.37,7.21]
[1755742702919,2.77,186.45,186.37,7.21]
[1755742703421,2.77,186.46,186.37,7.21]
[1755742703623,161.66232103,186.52,186.37,7.21]
[1755742703624,2.77,186.44,186.37,7.21]
[1755742703822,5.3644,186.39,186.37,7.21]
[1755742704021,8.1344,186.39,186.37,7.21]
[1755742704222,2.77,186.44,186.37,7.21]
[1755742704521,2.77,186.47,186.38,3.05]
[1755742704716,161.66232103,186.52,186.4,5.3638]
[1755742704921,2.77,186.51,186.41,3.05]
[1755742705119,3.75987021,186.49,186.37,10.26]
[1755742705325,3.75987021,186.46,186.37,10.26]
[1755742705828,2.77,186.48,186.37,10.26]
[1755742706128,5.3631,186.44,186.37,10.26]
[1755742706429,5.363,186.44,186.37,10.26]
[1755742706629,2.76,186.51,186.38,2.93]
[1755742706922,5.3621,186.48,186.44,2.93]
[1755742707127,3.75987021,186.5,186.39,2.93]
[1755742707329,2.76,186.51,186.39,2.93]
[1755742708017,161.66232103,186.52,186.4,2.93]
[1755742708223,161.66232103,186.52,186.44,5.3629]
[1755742708427,161.66232103,186.52,186.45,2.93]
[1755742708619,6.51987021,186.51,186.41,2.93]
[1755742709027,5.3621,186.48,186.41,2.93]
[1755742709231,6.51987021,186.51,186.41,2.93]
[1755742709733,2.76,186.45,186.37,10.14]
[1755742710324,5.3636,186.42,186.37,10.14]
[1755742710721,2.76,186.42,186.37,10.14]
[1755742710921,3.75987021,186.45,186.37,7.21]
[1755742711122,2.76,186.44,186.37,7.21]
[1755742711326,5.3642,186.4,186.37,7.21]
[1755742711729,3.75987021,186.42,186.37,7.21]
[1755742712137,8.1244,186.39,186.37,7.21]
[1755742712331,2.76,186.39,186.37,7.21]
[1755742713033,5.3647,186.38,186.37,7.21]
[1755742713433,8.1247,186.38,186.37,7.21]
[1755742713933,2.76,186.43,186.37,7.21]
[1755742714534,138.06,186.46,186.37,7.21]
[1755742714839,138.06,186.46,186.37,10.14]
[1755742715228,6.51987021,186.47,186.37,10.14]
[1755742715833,5.3647,186.38,186.37,7.21]
[1755742716039,8.1247,186.38,186.37,7.21]
[1755742716340,5.3647,186.38,186.37,7.21]
[1755742717231,2.76,186.42,186.37,7.21]
[1755742717431,2.76,186.4,186.37,7.21]
[1755742718235,5.3647,186.38,186.37,7.21]
[1755742718937,144.55987021,186.44,186.37,7.21]
[1755742719444,5.3647,186.38,186.37,7.21]
[1755742719631,5.3647,186.38,186.33,2.93]
[1755742719632,2.76,186.38,186.31,0.93375191]
[1755742719836,6.51987021,186.38,186.28,2.93]
[1755742720434,5.3672,186.3,186.28,2.93]
[1755742722034,3.75987021,186.34,186.25,0.93411534]
[1755742722841,2.76,186.35,186.25,0.93411534]
[1755742723230,0.93430343,186.39,186.24,3.75987021]
[1755742723435,3.69430343,186.39,186.28,2.93]
[1755742723737,2.76,186.36,186.25,0.9341028]
[1755742723935,2.76,186.36,186.26,2.93]
[1755742724542,2.76,186.36,186.27,5.3678]
[1755742725334,2.76,186.36,186.26,2.93]
[1755742725539,3.75987021,186.4,186.28,2.93]
[1755742725540,6.51987021,186.4,186.28,2.93]
[1755742725736,2.76,186.39,186.28,2.93]
[1755742727740,2.76,186.36,186.25,0.9341028]
[1755742727940,2.76,186.33,186.23,2.93]
[1755742729947,5.3677,186.28,186.22,5.3692]
[1755742730140,5.3677,186.28,186.24,2.93]
[1755742730746,5.3677,186.28,186.25,2.93]
[1755742730950,2.76,186.33,186.21,0.99420311]
[1755742730951,2.76,186.33,186.23,2.93]
[1755742731444,2.76,186.36,186.26,2.93]
[1755742731642,3.75987021,186.4,186.26,6.68987021]
[1755742731846,341.42539045,186.64,186.25,2.93]
[1755742731847,5.367,186.31,186.25,2.93]
[1755742732148,2.76,186.36,186.25,2.93]
[1755742732347,5.3671,186.3,186.23,148.02887021]
[1755742732649,2.76,186.33,186.24,2.93]
[1755742732844,3.75987021,186.34,186.24,2.93]
[1755742733356,6.51987021,186.37,186.24,2.93]
[1755742734239,6.51987021,186.37,186.25,5.3684]
[1755742736448,6.51987021,186.37,186.26,2.97]
[1755742736449,2.76,186.37,186.26,2.97]
[1755742737047,5.3658,186.35,186.29,2.97]
[1755742737248,2.76,186.37,186.29,2.97]
[1755742737455,2.79,186.41,186.29,2.97]
[1755742737849,5.3652,186.37,186.3,5.367]
[1755742738354,2.79,186.41,186.3,5.367]
[1755742738657,2.79,186.41,186.31,2.97]
[1755742739059,5.3642,186.4,186.34,8.3358]
[1755742739661,5.3644,186.39,186.35,2.97]
[1755742740256,2.79,186.45,186.38,2.97]
[1755742740655,2.79,186.45,186.34,2.97]
[1755742741062,2.79,186.49,186.37,2.97]
[1755742741952,5.363,186.45,186.37,8.3347]
[1755742742156,2.79,186.49,186.39,3.75987021]
[1755742742354,161.66232103,186.52,186.4,2.97]
[1755742743159,2.79,186.51,186.4,2.97]
[1755742743459,2.79,186.5,186.36,3.75987021]
[1755742743859,2.79,186.5,186.38,2.97]
[1755742744361,5.3631,186.44,186.38,2.97]
[1755742744865,5.3624,186.46,186.38,2.97]
[1755742745063,2.79,186.47,186.38,2.97]
[1755742745667,5.3633,186.43,186.38,2.97]
[1755742745868,5.3633,186.43,186.37,8.3349]
[1755742746166,5.3629,186.45,186.38,5.3645]
[1755742746468,2.79,186.47,186.37,2.97]
[1755742747369,5.3632,186.44,186.37,2.97]
[1755742747570,2.79,186.47,186.37,2.97]
[1755742747763,2.79,186.43,186.3,3.75987021]
[1755742748068,2.79,186.43,186.31,2.97]
[1755742748367,5.3644,186.4,186.32,5.3664]
[1755742748569,2.79,186.43,186.32,5.3664]
[1755742748865,2.79,186.43,186.31,2.97]
[1755742749065,2.79,186.43,186.29,4.4734828]
[1755742749269,2.79,186.4,186.25,7.4434828]
[1755742749772,2.79,186.38,186.25,7.4434828]
[1755742749962,2.79,186.38,186.27,3.75987021]
[1755742750364,8.1549,186.38,186.27,3.75987021]
[1755742750671,2.79,186.38,186.28,2.97]
[1755742750967,8.155,186.38,186.28,8.3373]
[1755742751167,8.155,186.38,186.28,2.97]
[1755742751571,2.79,186.38,186.29,9.12717021]
[1755742751964,2.79,186.38,186.31,5.3667]
[1755742752368,2.79,186.43,186.32,6.72987021]
[1755742752569,5.3636,186.42,186.33,5.3661]
[1755742753472,2.79,186.43,186.32,6.90987021]
[1755742754260,2.79,186.43,186.32,11.38335301]
[1755742754777,2.79,186.43,186.35,5.3653]
[1755742755375,2.79,186.47,186.36,2.97]
[1755742756068,2.79,186.47,186.38,3.75987021]
[1755742756269,2.79,186.47,186.39,2.97]
[1755742756471,2.79,186.47,186.39,8.3341]
[1755742756667,2.79,186.47,186.39,2.97]
[1755742757173,2.79,186.47,186.41,5.3638]
[1755742757370,2.79,186.47,186.39,2.97]
[1755742757371,5.3615,186.5,186.39,2.97]
[1755742757774,8.151,186.51,186.42,5.3635]
[1755742758371,2.79,186.51,186.42,2.97]
[1755742758567,161.66232103,186.52,186.45,2.97]
[1755742758771,2.79,186.55,186.45,2.97]
[1755742758972,2.79,186.55,186.41,6.72987021]
[1755742759270,0.03744094,186.5,186.48,0.03900117]
[1755742759472,8.1515,186.49,186.48,0.03900117]
[1755742759671,2.79,186.49,186.48,0.03900117]
[1755742760879,0.03623141,186.5,186.48,0.03900117]
[1755742761369,0.03623141,186.5,186.48,3.00900117]
[1755742762481,0.03623141,186.5,186.49,2.97]
[1755742763382,0.03623141,186.5,186.48,3.00900117]
[1755742764782,2.79,186.49,186.48,0.03900117]
[1755742765376,0.03623141,186.5,186.48,0.03900117]
[1755742766078,0.03623141,186.5,186.48,2.84900117]
[1755742766880,0.03623141,186.5,186.48,5.40080117]
[1755742767081,0.03623141,186.5,186.48,2.84900117]
[1755742768087,0.03623141,186.5,186.48,0.03900117]
[1755742770081,2.96,186.49,186.48,0.03900117]
[1755742772483,2.96,186.49,186.39,2.81]
[1755742772989,2.96,186.49,186.38,3.75987021]
[1755742773486,2.96,186.49,186.38,6.56987021]
[1755742773680,0.04022147,186.45,186.38,6.56987021]
[1755742774190,0.04022147,186.45,186.39,5.3644]
[1755742774680,0.04022147,186.45,186.41,2.81]
[1755742774877,0.04022147,186.45,186.42,2.81]
[1755742776489,0.04022147,186.45,186.41,3.75987021]
[1755742776690,0.04022147,186.45,186.44,2.81]
[1755742777992,0.04022147,186.45,186.44,8.173]
[1755742779390,0.04022147,186.45,186.44,11.93287021]
[1755742780890,0.04022147,186.45,186.41,3.75987021]
[1755742781095,0.04022147,186.45,186.41,2.81]
[1755742781795,0.04022147,186.45,186.41,8.1736]
[1755742782293,0.04022147,186.45,186.41,2.81]
[1755742782690,3.00022147,186.45,186.41,2.81]
[1755742782891,3.00022147,186.45,186.4,5.3641]
[1755742783390,0.04022147,186.45,186.4,5.3641]
[1755742783592,2.96,186.43,186.38,5.6344]
[1755742784697,2.96,186.43,186.39,5.3644]
[1755742784992,0.04022147,186.45,186.39,5.3644]
[1755742785794,0.04022147,186.45,186.4,5.3641]
[1755742785995,3.00022147,186.45,186.4,5.3641]
[1755742787498,2.96,186.44,186.4,8.1741]
[1755742787698,0.04022147,186.45,186.42,2.81]
[1755742787887,0.04022147,186.45,186.39,3.75987021]
[1755742788498,2.96,186.44,186.39,3.75987021]
[1755742788899,2.96,186.44,186.4,5.364]
[1755742789099,0.04022147,186.45,186.4,5.364]
[1755742789298,2.96,186.43,186.4,5.364]
[1755742789691,0.04022147,186.45,186.4,8.174]
[1755742790096,3.00022147,186.45,186.4,8.174]
[1755742791200,2.96,186.44,186.4,2.81]
[1755742791391,2.96,186.43,186.38,0.27]
[1755742791700,2.96,186.44,186.38,0.27]
[1755742793606,0.04022147,186.45,186.38,3.08]
[1755742794403,0.04022147,186.45,186.38,0.27]
[1755742794603,0.04022147,186.45,186.41,2.81]
[1755742794804,0.04022147,186.45,186.43,2.81]
[1755742795203,0.04022147,186.45,186.42,5.3633]
[1755742795705,0.04022147,186.45,186.43,5.3632]
[1755742797204,0.04022147,186.45,186.44,5.363]
[1755742797803,0.04022147,186.45,186.44,8.283]
[1755742798405,0.04022147,186.45,186.44,5.363]
[1755742799107,0.04022147,186.45,186.44,8.283]
[1755742799506,0.04022147,186.45,186.44,9.8364828]
[1755742799714,0.04022147,186.45,186.44,5.363]
[1755742799913,0.04022147,186.45,186.44,8.283]
[1755742800408,0.04022147,186.45,186.44,12.7564828]
[1755742800604,0.04022147,186.45,186.44,9.8364828]
[1755742800812,0.04022147,186.45,186.44,5.363]
[1755742804309,361.59331367,186.59,186.48,5.3617]
[1755742804512,2.88,186.52,186.48,5.3617]
[1755742804703,2.88,186.55,186.48,5.3617]
[1755742805308,2.88,186.54,186.48,5.3617]
[1755742806314,2.88,186.54,186.47,7.66738018]
[1755742806509,2.88,186.54,186.47,2.30538018]
[1755742806812,2.88,186.54,186.46,2.30538018]
[1755742807514,2.88,186.54,186.46,7.66768018]
[1755742808315,2.88,186.54,186.47,5.362]
[1755742808610,2.88,186.54,186.49,2.30538018]
[1755742808812,2.88,186.58,186.49,7.66668018]
[1755742809216,2.88,186.58,186.49,5.3613]
[1755742809520,2.88,186.58,186.48,5.3618]
[1755742809715,2.88,186.58,186.48,7.66718018]
[1755742810215,2.88,186.58,186.5,5.3612]
[1755742810717,2.88,186.58,186.49,5.3615]
[1755742811116,2.88,186.58,186.48,2.30538018]
[1755742812622,2.88,186.58,186.49,5.3615]
[1755742812813,360.66,186.59,186.45,4.4734828]
[1755742812814,2.88,186.56,186.45,4.4734828]
[1755742813013,2.88,186.56,186.44,6.77886298]
[1755742813320,2.88,186.51,186.45,5.3624]
[1755742813523,2.88,186.51,186.44,6.77886298]
[1755742814319,2.88,186.5,186.44,6.77886298]
[1755742814519,2.88,186.5,186.42,5.22538018]
[1755742815718,2.88,186.48,186.42,9.69886298]
[1755742816021,8.2418,186.48,186.43,5.3632]
[1755742816231,8.2418,186.48,186.42,2.92]
[1755742816416,8.2418,186.48,186.42,5.22538018]
[1755742817017,2.88,186.48,186.43,5.363]
[1755742817217,2.88,186.48,186.43,8.283]
[1755742817815,2.88,186.47,186.43,2.92]
[1755742818220,2.88,186.5,186.42,5.3635]
[1755742818723,2.88,186.5,186.41,6.77886298]
[1755742818724,2.88,186.48,186.39,7.3934828]
[1755742818918,2.88,186.48,186.39,2.92]
[1755742819224,2.30538018,186.49,186.39,2.92]
[1755742819225,5.363,186.45,186.4,5.3639]
[1755742819523,2.88,186.44,186.4,5.3639]
[1755742819926,2.88,186.49,186.41,2.92]
[1755742820926,5.3619,186.48,186.41,2.92]
[1755742821323,5.3621,186.47,186.42,5.3635]
[1755742821622,2.88,186.46,186.39,4.4734828]
[1755742821927,2.88,186.45,186.41,2.92]
[1755742822125,2.30538018,186.48,186.41,2.92]
[1755742822825,2.30538018,186.48,186.42,5.3633]
[1755742823326,2.88,186.47,186.4,5.3638]
[1755742823723,2.88,186.47,186.38,4.4734828]
[1755742824029,5.3624,186.46,186.4,5.3641]
[1755742826030,2.88,186.47,186.4,2.93]
[1755742826224,2.88,186.47,186.4,5.23538018]
[1755742826626,2.88,186.47,186.42,5.3633]
[1755742826927,2.86,186.5,186.42,8.2933]
[1755742827423,5.3625,186.46,186.4,5.364]
[1755742827625,2.86,186.47,186.38,2.93]
[1755742828029,2.86,186.47,186.38,5.23538018]
[1755742828434,5.3624,186.46,186.4,5.3639]
[1755742828732,5.16538018,186.5,186.39,2.93]
[1755742828932,5.16538018,186.5,186.39,7.4034828]
[1755742829132,2.30538018,186.5,186.43,5.3632]
[1755742829325,2.86,186.48,186.43,8.2932]
[1755742829827,2.86,186.48,186.44,8.2929]
[1755742830036,2.86,186.52,186.45,2.93]
[1755742830533,2.86,186.52,186.45,8.2926]
[1755742831528,5.3613,186.5,186.45,8.2926]
[1755742831836,2.86,186.52,186.45,8.2926]
[1755742832138,2.86,186.52,186.44,5.3629]
[1755742833628,5.3618,186.49,186.44,5.3629]
[1755742833835,8.2218,186.49,186.44,8.2929]
[1755742834732,2.86,186.48,186.41,4.4734828]
[1755742834934,2.86,186.48,186.4,2.93]
[1755742835934,5.3625,186.46,186.4,8.2939]
[1755742836731,5.3622,186.47,186.41,5.3638]
[1755742837337,5.3622,186.47,186.4,8.294]
[1755742837638,5.3622,186.47,186.4,2.93]
[1755742837836,8.2218,186.48,186.4,7.4034828]
[1755742838029,2.30538018,186.52,186.42,2.93]
[1755742838336,2.86,186.51,186.42,2.93]
[1755742838725,2.86,186.55,186.44,2.30538018]
[1755742838931,5.16538018,186.55,186.45,2.93]
[1755742839130,5.3609,186.52,186.45,2.93]
[1755742839333,2.86,186.53,186.45,8.2927]
[1755742839531,2.86,186.53,186.45,2.93]
[1755742839728,2.86,186.51,186.41,9.70886298]
[1755742839934,2.86,186.51,186.41,7.4034828]
[1755742840237,5.3623,186.47,186.41,2.93]
[1755742840428,2.30538018,186.52,186.41,2.93]
[1755742840429,2.86,186.49,186.41,2.93]
[1755742840634,2.86,186.49,186.41,7.4034828]
[1755742841236,5.3622,186.47,186.41,7.4034828]
[1755742841444,2.86,186.49,186.41,7.4034828]
[1755742841939,2.86,186.49,186.42,5.3633]
[1755742842841,8.2219,186.48,186.43,8.2932]
[1755742843140,2.86,186.48,186.44,2.93]
[1755742843347,2.86,186.52,186.45,2.93]
[1755742844034,2.30538018,186.53,186.45,2.93]
[1755742844035,5.3615,186.49,186.45,2.93]
[1755742844231,8.2215,186.49,186.45,2.93]
[1755742844528,5.3615,186.49,186.43,8.2932]
[1755742845134,2.86,186.47,186.42,6.77886298]
[1755742845335,2.86,186.49,186.4,7.4034828]
[1755742845547,2.86,186.49,186.4,2.93]
[1755742846050,2.86,186.49,186.42,2.93]
[1755742846542,5.3619,186.48,186.42,8.2933]
[1755742847338,5.3622,186.47,186.42,8.2933]
[1755742847544,2.86,186.46,186.42,2.93]
[1755742848045,8.2224,186.46,186.42,2.93]
[1755742850545,2.30538018,186.5,186.42,2.93]
[1755742851047,5.3617,186.49,186.42,2.93]
[1755742851642,5.3618,186.48,186.42,2.93]
[1755742852645,5.3618,186.48,186.44,2.93]
[1755742853442,5.3618,186.48,186.45,2.93]
[1755742853752,136.82,186.54,186.45,2.93]
[1755742853753,5.3616,186.49,186.45,2.93]
[1755742853945,8.2216,186.49,186.45,2.93]
[1755742854546,5.3613,186.5,186.47,2.93]
[1755742854940,2.86,186.5,186.46,5.3624]
[1755742855346,2.86,186.5,186.46,8.2924]
[1755742855650,8.221,186.51,186.48,2.93]
[1755742855841,8.221,186.51,186.46,8.2624]
[1755742856141,8.221,186.51,186.47,2.9]
[1755742856542,2.86,186.51,186.47,2.9]
[1755742857349,2.86,186.51,186.47,8.262]
[1755742857544,2.86,186.51,186.48,2.9]
[1755742857856,2.86,186.51,186.48,8.2618]
[1755742858144,2.86,186.51,186.48,5.3618]
[1755742858450,5.30538018,186.54,186.46,4.4734828]
[1755742858651,5.30538018,186.54,186.48,2.9]
[1755742858855,3.0,186.54,186.48,2.9]
[1755742859150,3.0,186.54,186.48,7.3734828]
[1755742859342,3.0,186.54,186.5,5.361]
[1755742860142,3.0,186.54,186.5,8.261]
[1755742860443,3.0,186.58,186.51,2.9]
[1755742860756,5.3595,186.57,186.51,12.7341828]
[1755742860954,3.0,186.58,186.51,7.3734828]
[1755742861255,3.0,186.58,186.53,4.4734828]
[1755742861445,3.0,186.57,186.53,4.4734828]
[1755742861848,3.0,186.57,186.53,7.3734828]
[1755742862042,3.0,186.57,186.53,12.7335828]
[1755742862251,3.0,186.56,186.53,12.7335828]
[1755742862746,363.66,186.59,186.54,12.7334828]
[1755742862951,3.0,186.59,186.54,9.8334828]
[1755742863145,5.3583,186.61,186.55,9.67886298]
[1755742863449,139.72,186.62,186.55,2.30538018]
[1755742863649,3.0,186.62,186.55,2.30538018]
[1755742863959,139.72,186.62,186.55,2.30538018]
[1755742864949,5.3583,186.61,186.55,2.30538018]
[1755742865855,145.0578,186.62,186.55,7.66498018]
[1755742866048,145.0578,186.62,186.55,2.30538018]
[1755742866242,8.3578,186.62,186.55,2.30538018]
[1755742866448,145.0378,186.62,186.55,2.30538018]
[1755742866750,290.3766648,186.64,186.57,2.30538018]
[1755742867352,3.0,186.63,186.57,2.30538018]
[1755742867553,3.0,186.63,186.56,5.20538018]
[1755742868356,3.0,186.63,186.54,7.66518018]
[1755742869150,5.3581,186.61,186.55,5.3598]
[1755742869351,3.0,186.63,186.56,2.30538018]
[1755742869758,290.3766648,186.64,186.6,2.9]
[1755742869960,290.3766648,186.64,186.6,5.20538018]
[1755742870262,290.3766648,186.64,186.61,2.9]
[1755742871057,5.3569,186.66,186.61,2.9]
[1755742871256,144.9969,186.66,186.61,2.9]
[1755742871456,136.64,186.66,186.63,2.9]
[1755742871656,360.34,186.69,186.63,2.9]
[1755742871955,139.62,186.68,186.63,2.9]
[1755742872154,3.0,186.67,186.61,5.358]
[1755742872860,3.0,186.67,186.63,2.9]
[1755742873158,360.34,186.69,186.62,2.30538018]
[1755742873357,139.62,186.68,186.63,2.9]
[1755742873558,139.62,186.68,186.64,2.9]
[1755742873757,139.62,186.68,186.62,2.30538018]
[1755742874050,136.62,186.68,186.63,2.9]
[1755742874252,136.62,186.68,186.65,2.9]
[1755742874561,136.6,186.7,186.66,2.9]
[1755742874756,8.355,186.72,186.65,2.9]
[1755742874951,136.58,186.71,186.65,8.2569]
[1755742875549,3.0,186.72,186.65,8.2569]
[1755742875760,136.58,186.71,186.65,8.2569]
[1755742876461,136.58,186.71,186.65,2.9]
[1755742877861,136.58,186.71,186.65,8.2569]
[1755742878251,136.54,186.71,186.65,8.2569]
[1755742878456,136.54,186.71,186.65,2.9]
[1755742878859,3.0,186.7,186.64,2.30538018]
[1755742879058,3.0,186.7,186.6,5.20538018]
[1755742879257,3.0,186.7,186.62,2.30538018]
[1755742879461,8.3556,186.7,186.62,7.66308018]
[1755742879664,8.3556,186.7,186.62,5.3577]
[1755742879862,5.3558,186.69,186.61,2.30538018]
[1755742880164,139.54,186.68,186.6,2.9]
[1755742880966,139.54,186.68,186.61,2.30538018]
[1755742881164,3.0,186.68,186.62,2.9]
[1755742881660,8.3562,186.68,186.6,2.30538018]
[1755742882050,3.0,186.68,186.61,5.3581]
[1755742882251,3.0,186.68,186.61,2.9]
[1755742882657,5.3558,186.69,186.62,5.3577]
[1755742882855,2.30538018,186.72,186.62,2.30538018]
[1755742883050,139.5,186.71,186.62,2.30538018]
[1755742883253,139.5,186.71,186.63,2.9]
[1755742883452,139.5,186.71,186.64,2.30538018]
[1755742883769,136.5,186.72,186.65,2.9]
[1755742884359,178.19503174,186.76,186.69,2.9]
[1755742884661,3.0,186.75,186.69,2.9]
[1755742884869,3.0,186.75,186.66,2.30538018]
[1755742885262,8.3541,186.75,186.67,5.3561]
[1755742885462,3.0,186.75,186.66,2.30538018]
[1755742885664,3.0,186.75,186.68,5.3558]
[1755742886669,3.0,186.75,186.67,2.9]
[1755742886964,2.91,186.74,186.64,2.30538018]
[1755742887372,2.91,186.74,186.67,2.96]
[1755742888371,8.2646,186.74,186.67,2.96]
[1755742888664,2.91,186.72,186.63,2.96]
[1755742888870,2.30538018,186.73,186.63,2.96]
[1755742888871,2.91,186.7,186.63,2.96]
[1755742889071,8.2658,186.7,186.63,2.96]
[1755742889271,2.91,186.7,186.6,5.26538018]
[1755742889965,2.30538018,186.69,186.6,2.96]
[1755742890270,139.35,186.68,186.6,2.96]
[1755742890872,2.91,186.68,186.6,5.26538018]
[1755742891066,2.30538018,186.72,186.6,2.30538018]
[1755742891271,2.30538018,186.72,186.63,2.96]
[1755742891272,136.44,186.71,186.63,2.96]
[1755742891770,136.44,186.71,186.64,5.3572]
[1755742891969,2.91,186.72,186.64,7.66258018]
[1755742892172,139.33,186.72,186.64,7.66258018]
[1755742892367,2.91,186.71,186.63,2.96]
[1755742892968,2.91,186.69,186.61,2.30538018]
[1755742893273,2.91,186.69,186.59,5.26538018]
[1755742893776,5.3563,186.68,186.59,10.62388018]
[1755742894370,5.3564,186.67,186.59,10.62388018]
[1755742894970,5.3562,186.68,186.6,5.3584]
[1755742895177,2.91,186.69,186.52,125.50865496]
[1755742895178,139.33,186.72,186.62,2.96]
[1755742895366,139.33,186.71,186.62,2.96]
[1755742896174,2.91,186.69,186.59,2.30538018]
[1755742897662,5.3565,186.67,186.59,7.66388018]
[1755742897868,2.91,186.69,186.58,2.96]
[1755742898061,2.91,186.69,186.52,121.05587642]
[1755742898062,2.91,186.63,186.57,2.30538018]
[1755742898270,2.91,186.63,186.56,5.3593]
[1755742898569,2.91,186.63,186.55,5.26538018]
[1755742898763,137.35277581,186.71,186.53,2.30538018]
[1755742898764,2.30538018,186.62,186.53,2.30538018]
[1755742899068,2.91,186.61,186.52,2.96]
[1755742899469,138.70538018,186.62,186.48,2.30538018]
[1755742899470,136.4,186.63,186.55,2.96]
[1755742899668,139.31,186.64,186.55,5.26538018]
[1755742900072,144.6673,186.64,186.56,5.3593]
[1755742900474,8.2673,186.64,186.56,5.3593]
[1755742900871,2.91,186.64,186.57,5.359]
[1755742901071,136.4,186.66,186.58,2.96]
[1755742901274,141.59538018,186.68,186.58,2.96]
[1755742901477,141.59538018,186.68,186.59,5.3587]
[1755742901478,5.3564,186.67,186.59,5.3587]
[1755742902277,5.3564,186.67,186.59,10.62408018]
[1755742902479,144.6462,186.68,186.6,5.3584]
[1755742903570,139.29,186.68,186.59,2.96]
[1755742903874,2.30538018,186.65,186.56,2.30538018]
[1755742904273,2.30538018,186.65,186.55,5.26538018]
[1755742904274,5.3576,186.63,186.55,5.26538018]
[1755742904478,8.2676,186.63,186.55,5.26538018]
[1755742905977,8.2676,186.63,186.55,10.62518018]
[1755742907274,2.91,186.63,186.55,5.26538018]
[1755742907475,136.38,186.68,186.53,2.30538018]
[1755742907476,2.91,186.6,186.53,2.30538018]
[1755742907777,2.91,186.6,186.51,8.3208]
[1755742908278,2.91,186.6,186.51,2.96]
[1755742908683,2.91,186.6,186.52,5.3605]
[1755742909581,2.91,186.6,186.51,8.3209]
[1755742910281,2.91,186.6,186.52,5.3607]
[1755742910683,2.91,186.6,186.52,7.66608018]
[1755742911677,2.91,186.6,186.53,2.96]
[1755742912074,2.91,186.64,186.55,2.96]
[1755742912278,2.91,186.64,186.48,2.30538018]
[1755742912279,2.91,186.64,186.58,2.96]